Workbook

Sheet 表1
A1: 三穗县高校毕业生就业见习生活补助及人身意外伤害与住院医疗商业保险补贴名单
A2: 填报单位：三穗县就业局
A4: 序号 | B4: 申请单位 | C4: 见习姓名 | D4: 身份证号码 | E4: 毕业时间 | F4: 见习时间 | G4: 本次申请补贴时间 | H4: 申请补贴月数 | I4: 补贴标准（元） | J4: 补贴标准（元） | K4: 补贴金额小计（元） | L4: 人身意外保险 | M4: 合计补贴金额（元） | N4: 备注
A5: 1 | B5: 三穗县中医医院 | C5: 杨昭楠 | D5: 522624********321X | E5: 2022.7.1 | F5: 2022.8.1-2023.7.31 | G5: 2022.08.1-2022.08.31 | H5: 1 | I5: 942.00 | K5: =I5 -> 942.00 | L5: 260.00 | M5: =K5+L5 -> 1202.00
A6: 2 | B6: 桐林镇人民政府 | C6: 杨晓华 | D6: 522624********0024 | E6: 2020.7.1 | F6: 2020.09.01—2021.08.31 | G6: 2020.08.07-2021.07.31 | H6: 11 | I6: 942.00 | K6: =H6*I6 -> 10362.00 | M6: =K6+K7+K8+K9+K10+K11 -> 30144.00
A7: 3 | B7: 桐林镇人民政府 | C7: 粟周洪 | D7: 522624********3617 | E7: 2020.7.1 | F7: 2020.09.01—2021.08.31 | G7: 2020.09.01-2021.01.31 | H7: 5 | I7: 942.00 | K7: 4710.00
A8: 4 | B8: 桐林镇人民政府 | C8: 杨梅 | D8: 522624********0043 | E8: 2020.7.1 | F8: 2020.09.01—2021.08.31 | G8: 2020.09.01-2021.05.31 | H8: 9 | I8: 942.00 | K8: 8478.00
A9: 5 | B9: 桐林镇人民政府 | C9: 石帮顺 | D9: 522624********3219 | E9: 2020.7.1 | F9: 2020.10.01—2021.09.30 | G9: 2020.11.01-2021.1.31 | H9: 3 | I9: 942.00 | K9: 2826.00
A10: 6 | B10: 桐林镇人民政府 | C10: 杨林燕 | D10: 522624********3243 | E10: 2020.7.1 | F10: 2020.11.1—2021.10.30 | G10: 2020.11.01-2020.12.31 | H10: 2 | I10: 942.00 | K10: 1884.00
A11: 7 | B11: 桐林镇人民政府 | C11: 粟多杭 | D11: 522624********3617 | E11: 2020.7.1 | F11: 2020.11.01—2021.10.30 | G11: 2020.11.01-2020.12.31 | H11: 2 | I11: 942.00 | K11: 1884.00
A12: 8 | B12: 三穗县统计局 | C12: 刘航利 | D12: 522624********0043 | E12: 2021.07.1 | F12: 2022.7.25-2023.7.24 | G12: 2022.7.25-2022.08.31 | H12: 2 | I12: 942.00 | K12: 1159.00 | L12: 300.00 | M12: =K12+K13+K14+L12+L13+L14 -> 8360.00 | N12: 其中7月补贴5天
A13: 9 | B13: 三穗县统计局 | C13: 杨晨 | D13: 522501********2464 | E13: 2022.7.1 | F13: 2022.8.22-2023.7.31 | G13: 2022.08.22-2022.11.04 | H13: 3 | I13: 942.00 | K13: 2057.00 | L13: 300.00 | N13: 其中11月补贴4天
A14: 10 | B14: 三穗县统计局 | C14: 姚元梅 | D14: 522624********0028 | E14: 2022.7.1 | F14: 2022.9.6-2023.9.5 | G14: 2022.09.06-2023.01.20 | H14: 5 | I14: 942.00 | K14: 4244.00 | L14: 300.00 | N14: 其中1月补贴11天
A15: 11 | B15: 三穗县退役军人事务局 | C15: 杨玉林 | D15: 522624********0031 | E15: 2021.7.1 | F15: 2021.8.1-2022.7.31 | G15: 2021.8.1-2021.8.31 | H15: 1 | I15: 942.00 | K15: =H15*I15 -> 942.00 | M15: =K16+K17+K15 -> 10362.00
A16: 12 | B16: 三穗县退役军人事务局 | C16: 王英 | D16: 522527********1523 | E16: 2022.6.16 | F16: 2022.8.1-2023.7.31 | G16: 2022.08.01-2023.01.31 | H16: 6 | I16: 942.00 | K16: =H16*I16 -> 5652.00
A17: 13 | B17: 三穗县退役军人事务局 | C17: 余涛 | D17: 522625********2149 | E17: 2022.7.1 | F17: 2022.8.1-2023.7.31 | G17: 2022.08.01-2022.11.31 | H17: 4 | I17: 942.00 | K17: =H17*I17 -> 3768.00
A18: 14 | B18: 三穗县卫生健康局 | C18: 莫昌林 | D18: 522624********0078 | E18: 2020.7.1 | F18: 2020.10.26-2021.10.25 | G18: 2020.10.26-2021.02.31 | H18: 5 | I18: 942.00 | K18: 3925.00 | M18: =K18+K19+K20+K21+K22+K23+K24+L24 -> 46636.66 | N18: 其中10月补贴5天
A19: 15 | B19: 三穗县卫生健康局 | C19: 吴其州 | D19: 522624********0039 | E19: 2020.7.1 | F19: 2020.10.19-2021.10.18 | G19: 2020.10.19-2021.02.31 | H19: 5 | I19: 942.00 | K19: 4144.80 | N19: 其中10月补贴10天
A20: 16 | B20: 三穗县卫生健康局 | C20: 欧阳开轩 | D20: 522624********0014 | E20: 2019.6.30 | F20: 2020.10.28-2021.10.28 | G20: 2020.10.28-2020.11.31 | H20: 2 | I20: 942.00 | K20: 1036.20 | N20: 其中10月补贴2天
A21: 17 | B21: 三穗县卫生健康局 | C21: 杨梅 | D21: 522624********2620 | E21: 2020.7.1 | F21: 2020.9.22-2021.9.21 | G21: 2020.9.22-2021.09.21 | H21: 12 | I21: 942.00 | K21: 11294.26 | N21: 其中2020年9月补贴7天，2021年9月补贴15天
A22: 18 | B22: 三穗县卫生健康局 | C22: 杨琳 | D22: 522624********0026 | E22: 2020.6.30 | F22: 2020.9.15-2021.9.14 | G22: 2020.9.15-2021.8.31 | H22: 11 | I22: 942.00 | K22: 10864.40 | N22: 其中9月补贴14天
A23: 19 | B23: 三穗县卫生健康局 | C23: 杨明倩 | D23: 522624********0042 | E23: 2021.7.1 | F23: 2021.8.1-2022.7.31 | G23: 2021.08.01-2022.07.31 | H23: 12 | I23: 942.00 | K23: =+H23*I23 -> 11304.00
A24: 20 | B24: 三穗县卫生健康局 | C24: 杨丽萍 | D24: 522625********2726 | E24: 2021.7.1 | F24: 2022.7.1-2023.6.30 | G24: 2022.07.01-2022.10.31 | H24: 4 | I24: 942.00 | K24: =H24*I24 -> 3768.00 | L24: 300.00
A25: 21 | B25: 三穗县民族宗教事务局 | C25: 张小雪 | D25: 522624********4021 | E25: 2021.7.1 | F25: 2021-8.2-2022.7.31 | G25: 2021-8.2-2022.2.31 | H25: 7 | I25: 942.00 | K25: =H25*I25 -> 6594.00 | M25: =K25+L25+K26+L26+K27+L27 -> 23384.00
A26: 22 | B26: 三穗县民族宗教事务局 | C26: 杨旋 | D26: 522624********3244 | E26: 2021.7.1 | F26: 2021-8.2-2022.7.31 | G26: 2021-8.2-2022.7.31 | H26: 12 | I26: 942.00 | K26: 10838.00 | N26: 其中3月补贴11天
A27: 23 | B27: 三穗县民族宗教事务局 | C27: 吴金慧 | D27: 522624********004X | E27: 2021.6.7 | F27: 2022.7.7-2023.7.7 | G27: 2022.7.7-2022.12.31 | H27: 6 | I27: 942.00 | K27: =H27*I27 -> 5652.00 | L27: 300.00
A28: 24 | B28: 三穗县人力资源和社会保障局 | C28: 张细德 | D28: 522624********441X | E28: 2020.7.1 | F28: 2022.7.1-2023.6.30 | G28: 2023.1.1-2023.4.31 | H28: 4 | I28: 942.00 | J28: 996.00 | K28: =942+(3*996) -> 3930.00 | M28: =K28+K29+K30+K31+K32 -> 16662.00
A29: 25 | B29: 三穗县人力资源和社会保障局 | C29: 杨洋 | D29: 522624********0034 | E29: 2021.7.1 | F29: 2022.7.1-2023.6.30 | G29: 2023.1.1-2023.4.31 | H29: 4 | I29: 942.00 | J29: 996.00 | K29: =942+(3*996) -> 3930.00
A30: 26 | B30: 三穗县人力资源和社会保障局 | C30: 龙婷婷 | D30: 522624********002X | E30: 2022.7.1 | F30: 2022.8.1-2023.9.30 | G30: 2023.1.1-2023.1.31 | H30: 1 | I30: 942.00 | K30: =942 -> 942.00
A31: 27 | B31: 三穗县人力资源和社会保障局 | C31: 杨曼琪 | D31: 522425********9040 | E31: 2022.7.1 | F31: 2022.10.1-2023.9.30 | G31: 2023.1.1-2023.4.31 | H31: 4 | I31: 942.00 | J31: 996.00 | K31: =942+(3*996) -> 3930.00
A32: 28 | B32: 三穗县人力资源和社会保障局 | C32: 刘荣济 | D32: 522624********0014 | E32: 2021.7.26 | F32: 2022.10.18-2023.9.31 | G32: 2023.1.1-2023.4.31 | H32: 4 | I32: 942.00 | J32: 996.00 | K32: =942+(3*996) -> 3930.00
A33: 29 | B33: 三穗县投资促进局 | C33: 王瑶 | D33: 522624********0062 | E33: 2021.7.1 | F33: 2021.9.1-2022.8.31 | G33: 2021.9.1-2022.8.31 | H33: 12 | I33: 942.00 | K33: =H33*I33 -> 11304.00 | M33: =K33+K34+K35+K36+L33+L34+L35+L36+L37+K37 -> 32145.00
A34: 30 | B34: 三穗县投资促进局 | C34: 潘承芝 | D34: 522624********4421 | E34: 2021.7.1 | F34: 2021.9.1-2022.8.31 | G34: 2021.9.1-2022.1.31 | H34: 5 | I34: 942.00 | K34: =H34*I34 -> 4710.00
A35: 31 | B35: 三穗县投资促进局 | C35: 舒琪 | D35: 522624********122X | E35: 2022.6.23 | F35: 2022.7.25-2023.7.24 | G35: 2022.8.1-2023.3.31 | H35: 8 | I35: 942.00 | J35: 996.00 | K35: 7644.00 | L35: 299.00
A36: 32 | B36: 三穗县投资促进局 | C36: 杨锐 | D36: 522624********1815 | E36: 2022.7.1 | F36: 2022.7.25-2023.7.24 | G36: 2022.8.31-2023.02.31 | H36: 1 | I36: 942.00 | K36: 942.00 | L36: 299.00
A37: 33 | B37: 三穗县投资促进局 | C37: 刘茜 | D37: 522624********0063 | E37: 2022.7.1 | F37: 2022.8.10-2023.8.9 | G37: 2022.08.1-2022.08.31 | H37: 7 | I37: 942.00 | J37: 996.00 | K37: 6648.00 | L37: 299.00
A38: 34 | B38: 三穗县扶贫开发投资有限责任公司 | C38: 吴章康 | D38: 522624********1219 | E38: 2022.6.8 | F38: 2022.7.25-2023.7.24 | G38: 2022.7.25-2023.01.31 | H38: 7 | I38: 942.00 | K38: 5868.54 | L38: 300.00 | M38: =K38+L38 -> 6168.54 | N38: 其中7月补贴5天
A39: 合计 | K39: =SUM(K5:K38) -> 172107.20 | L39: =SUM(L5:L38) -> 2957.00 | M39: =SUM(M5:M38) -> 175064.20
